Workbook

Sheet ДЧБ
B3: РЕЕСТР
B4: источников доходов районного бюджета Тонкинского муниципального района Нижегородской области
M6: тыс.руб.
A7: Номер реестровой записи | B7: Наименование группы источников доходов бюджетов/ наименование источника дохода бюджета | C7: Классификация доходов бюджета | E7: Наименование главного администратора доходов бюджета | F7: Код строки | H7: Прогноз доходов бюджета на 2021 г. (по состоянию на "01" ноября 2021 г.) | I7: Кассовые поступления по состоянию на "01" ноября 2021 г. | J7: Оценка исполнения 2021 г. | K7: Прогноз доходов бюджета
C8: код | D8: наименование | K8: на 2022 г. | L8: на 2023 г. | M8: на 2024 г.
G9: Наименование Доп. КД
A10: 1 | B10: 2 | C10: 3 | D10: 4 | E10: 5 | F10: 6 | H10: 7 | I10: 8 | J10: 9 | K10: 10 | L10: 11 | M10: 12
H11: 439630.15 | I11: 352523.71 | J11: =J12+J220 -> 444371.91 | K11: =K12+K220 -> 469275.1 | L11: =L12+L220 -> 428245.7 | M11: =M12+M220 -> 422958.5
B12: НАЛОГОВЫЕ И НЕНАЛОГОВЫЕ ДОХОДЫ | C12: 000. 1.00.00.00.0.00.0.000.000 | D12: НАЛОГОВЫЕ И НЕНАЛОГОВЫЕ ДОХОДЫ | G12: НЕ УКАЗАНО | H12: =H13+H37+H81+H104+H121+H136+H142+H151+H216 -> 63854.7 | I12: =I13+I37+I81+I104+I121+I136+I142+I151+I216 -> 54334.88 | J12: =J13+J37+J81+J104+J121+J136+J142+J147+J151+J216 -> 68596.46 | K12: =K13+K37+K81+K104+K121+K142+K147+K151+K216 -> 70967.9 | L12: =L13+L37+L81+L104+L121+L142+L147+L151+L216 -> 75574.5 | M12: 80404
B13: НАЛОГИ НА ПРИБЫЛЬ, ДОХОДЫ | C13: 182. 1.01.00.00.0.00.0.000.000 | D13: НАЛОГИ НА ПРИБЫЛЬ, ДОХОДЫ | E13: Управление Федеральной налоговой службы по Нижегородской области | G13: НЕ УКАЗАНО | H13: 57201 | I13: 45665.17 | J13: =J14 -> 59157 | K13: =K14 -> 62859.2 | L13: =L14 -> 67008 | M13: =M14 -> 71430.5
B14: Налог на доходы физических лиц | C14: 182. 1.01.02.00.0.01.0.000.110 | D14: Налог на доходы физических лиц | E14: Управление Федеральной налоговой службы по Нижегородской области | G14: НЕ УКАЗАНО | H14: 57201 | I14: 45665.17 | J14: =J15+J22+J27+J34 -> 59157 | K14: =K15+K22+K27+K34 -> 62859.2 | L14: =L15+L22+L27+L34 -> 67008 | M14: 71430.5
C15: 182. 1.01.02.01.0.01.0.000.110 | D15: Налог на доходы физических лиц с доходов, источником которых является налоговый агент, за исключением доходов, в отношении которых исчисление и уплата налога осуществляются в соответствии со статьями 227, 227.1 и 228 Налогового кодекса Российской Федерации | E15: Управление Федеральной налоговой службы по Нижегородской области | G15: НЕ УКАЗАНО | H15: 56693.4 | I15: 44969.24 | J15: 58447 | K15: 62418.2 | L15: 66567 | M15: 70989.5
C16: 1.01.02.01.0.01.1.000.110 | D16: Налог на доходы физических лиц с доходов, источником которых является налоговый агент, за исключением доходов, в отношении которых исчисление и уплата налога осуществляются в соответствии со статьями 227, 227.1 и 228 Налогового кодекса Российской Федерации (сумма платежа (перерасчеты, недоимка и задолженность по соответствующему платежу, в том числе по отмененному) | E16: Управление Федеральной налоговой службы по Нижегородской области | G16: НЕ УКАЗАНО | H16: 57168.1 | I16: 40881.68
C17: 1.01.02.01.0.01.1.000.110 | D17: Налог на доходы физических лиц с доходов, источником которых является налоговый агент, за исключением доходов, в отношении которых исчисление и уплата налога осуществляются в соответствии со статьями 227, 227.1 и 228 Налогового кодекса Российской Федерации (сумма платежа (перерасчеты, недоимка и задолженность по соответствующему платежу, в том числе по отмененному) | E17: Управление Федеральной налоговой службы по Нижегородской области | G17: НЕ УКАЗАНО | H17: 57168.1 | I17: 40881.68
C18: 1.01.02.01.0.01.2.100.110 | D18: Налог на доходы физических лиц с доходов, источником которых является налоговый агент, за исключением доходов, в отношении которых исчисление и уплата налога осуществляются в соответствии со статьями 227, 227.1 и 228 Налогового кодекса Российской Федерации (пени по соответствующему платежу) | E18: Управление Федеральной налоговой службы по Нижегородской области | G18: НЕ УКАЗАНО | H18: 0 | I18: 101.67
C19: 1.01.02.01.0.01.2.100.110 | D19: Налог на доходы физических лиц с доходов, источником которых является налоговый агент, за исключением доходов, в отношении которых исчисление и уплата налога осуществляются в соответствии со статьями 227, 227.1 и 228 Налогового кодекса Российской Федерации (пени по соответствующему платежу) | E19: Управление Федеральной налоговой службы по Нижегородской области | G19: НЕ УКАЗАНО | H19: 0 | I19: 101.67
C20: 1.01.02.01.0.01.3.000.110 | D20: Налог на доходы физических лиц с доходов, источником которых является налоговый агент, за исключением доходов, в отношении которых исчисление и уплата налога осуществляются в соответствии со статьями 227, 227.1 и 228 Налогового кодекса Российской Федерации (суммы денежных взысканий (штрафов) по соответствующему платежу согласно законодательству Российской Федерации) | E20: Управление Федеральной налоговой службы по Нижегородской области | G20: НЕ УКАЗАНО | H20: 0 | I20: 71.53
C21: 1.01.02.01.0.01.3.000.110 | D21: Налог на доходы физических лиц с доходов, источником которых является налоговый агент, за исключением доходов, в отношении которых исчисление и уплата налога осуществляются в соответствии со статьями 227, 227.1 и 228 Налогового кодекса Российской Федерации (суммы денежных взысканий (штрафов) по соответствующему платежу согласно законодательству Российской Федерации) | E21: Управление Федеральной налоговой службы по Нижегородской области | G21: НЕ УКАЗАНО | H21: 0 | I21: 71.53
C22: 182. 1.01.02.02.0.01.0.000.110 | D22: Налог на доходы физических лиц с доходов, полученных от осуществления деятельности физическими лицами, зарегистрированными в качестве индивидуальных предпринимателей, нотариусов, занимающихся частной практикой, адвокатов, учредивших адвокатские кабинеты, и других лиц, занимающихся частной практикой в соответствии со статьей 227 Налогового кодекса Российской Федерации | E22: Управление Федеральной налоговой службы по Нижегородской области | G22: НЕ УКАЗАНО | H22: 414 | I22: 226.79 | J22: 240 | K22: 324 | L22: 324 | M22: 324
C23: 1.01.02.02.0.01.1.000.110 | D23: Налог на доходы физических лиц с доходов, полученных от осуществления деятельности физическими лицами, зарегистрированными в качестве индивидуальных предпринимателей, нотариусов, занимающихся частной практикой, адвокатов, учредивших адвокатские кабинеты, и других лиц, занимающихся частной практикой в соответствии со статьей 227 Налогового кодекса Российской Федерации (сумма платежа (перерасчеты, недоимка и задолженность по соответствующему платежу, в том числе по отмененному) | E23: Управление Федеральной налоговой службы по Нижегородской области | G23: НЕ УКАЗАНО | H23: 621 | I23: 181.17
C24: 1.01.02.02.0.01.1.000.110 | D24: Налог на доходы физических лиц с доходов, полученных от осуществления деятельности физическими лицами, зарегистрированными в качестве индивидуальных предпринимателей, нотариусов, занимающихся частной практикой, адвокатов, учредивших адвокатские кабинеты, и других лиц, занимающихся частной практикой в соответствии со статьей 227 Налогового кодекса Российской Федерации (сумма платежа (перерасчеты, недоимка и задолженность по соответствующему платежу, в том числе по отмененному) | E24: Управление Федеральной налоговой службы по Нижегородской области | G24: НЕ УКАЗАНО | H24: 621 | I24: 181.17
C25: 1.01.02.02.0.01.3.000.110 | D25: Налог на доходы физических лиц с доходов, полученных от осуществления деятельности физическими лицами, зарегистрированными в качестве индивидуальных предпринимателей, нотариусов, занимающихся частной практикой, адвокатов, учредивших адвокатские кабинеты, и других лиц, занимающихся частной практикой в соответствии со статьей 227 Налогового кодекса Российской Федерации (суммы денежных взысканий (штрафов) по соответствующему платежу согласно законодательству Российской Федерации) | E25: Управление Федеральной налоговой службы по Нижегородской области | G25: НЕ УКАЗАНО | H25: 0 | I25: 1.8
C26: 1.01.02.02.0.01.3.000.110 | D26: Налог на доходы физических лиц с доходов, полученных от осуществления деятельности физическими лицами, зарегистрированными в качестве индивидуальных предпринимателей, нотариусов, занимающихся частной практикой, адвокатов, учредивших адвокатские кабинеты, и других лиц, занимающихся частной практикой в соответствии со статьей 227 Налогового кодекса Российской Федерации (суммы денежных взысканий (штрафов) по соответствующему платежу согласно законодательству Российской Федерации) | E26: Управление Федеральной налоговой службы по Нижегородской области | G26: НЕ УКАЗАНО | H26: 0 | I26: 1.8
C27: 182. 1.01.02.03.0.01.0.000.110 | D27: Налог на доходы физических лиц с доходов, полученных физическими лицами в соответствии со статьей 228 Налогового кодекса Российской Федерации | E27: Управление Федеральной налоговой службы по Нижегородской области | G27: НЕ УКАЗАНО | H27: 93.6 | I27: 459.93 | J27: 460 | K27: 117 | L27: 117 | M27: 117
C28: 1.01.02.03.0.01.1.000.110 | D28: Налог на доходы физических лиц с доходов, полученных физическими лицами в соответствии со статьей 228 Налогового кодекса Российской Федерации (сумма платежа (перерасчеты, недоимка и задолженность по соответствующему платежу, в том числе по отмененному) | E28: Управление Федеральной налоговой службы по Нижегородской области | G28: НЕ УКАЗАНО | H28: 81 | I28: 107.29
C29: 1.01.02.03.0.01.1.000.110 | D29: Налог на доходы физических лиц с доходов, полученных физическими лицами в соответствии со статьей 228 Налогового кодекса Российской Федерации (сумма платежа (перерасчеты, недоимка и задолженность по соответствующему платежу, в том числе по отмененному) | E29: Управление Федеральной налоговой службы по Нижегородской области | G29: НЕ УКАЗАНО | H29: 81 | I29: 107.29
C30: 1.01.02.03.0.01.2.100.110 | D30: Налог на доходы физических лиц с доходов, полученных физическими лицами в соответствии со статьей 228 Налогового кодекса Российской Федерации (пени по соответствующему платежу) | E30: Управление Федеральной налоговой службы по Нижегородской области | G30: НЕ УКАЗАНО | H30: 0 | I30: 0.07
C31: 1.01.02.03.0.01.2.100.110 | D31: Налог на доходы физических лиц с доходов, полученных физическими лицами в соответствии со статьей 228 Налогового кодекса Российской Федерации (пени по соответствующему платежу) | E31: Управление Федеральной налоговой службы по Нижегородской области | G31: НЕ УКАЗАНО | H31: 0 | I31: 0.07
C32: 1.01.02.03.0.01.3.000.110 | D32: Налог на доходы физических лиц с доходов, полученных физическими лицами в соответствии со статьей 228 Налогового кодекса Российской Федерации (суммы денежных взысканий (штрафов) по соответствующему платежу согласно законодательству Российской Федерации) | E32: Управление Федеральной налоговой службы по Нижегородской области | G32: НЕ УКАЗАНО | H32: 0 | I32: 1.8
C33: 1.01.02.03.0.01.3.000.110 | D33: Налог на доходы физических лиц с доходов, полученных физическими лицами в соответствии со статьей 228 Налогового кодекса Российской Федерации (суммы денежных взысканий (штрафов) по соответствующему платежу согласно законодательству Российской Федерации) | E33: Управление Федеральной налоговой службы по Нижегородской области | G33: НЕ УКАЗАНО | H33: 0 | I33: 1.8
C34: 182. 1.01.02.04.0.01.0.000.110 | D34: Налог на доходы физических лиц в виде фиксированных авансовых платежей с доходов, полученных физическими лицами, являющимися иностранными гражданами, осуществляющими трудовую деятельность по найму на основании патента в соответствии со статьей 227.1 Налогового кодекса Российской Федерации | E34: Управление Федеральной налоговой службы по Нижегородской области | G34: НЕ УКАЗАНО | H34: 0 | I34: 9.21 | J34: 10 | K34: 0 | L34: 0 | M34: 0
C35: 1.01.02.04.0.01.1.000.110 | D35: Налог на доходы физических лиц в виде фиксированных авансовых платежей с доходов, полученных физическими лицами, являющимися иностранными гражданами, осуществляющими трудовую деятельность по найму на основании патента в соответствии со статьей 227.1 Налогового кодекса Российской Федерации (сумма платежа (перерасчеты, недоимка и задолженность по соответствующему платежу, в том числе по отмененному) | E35: Управление Федеральной налоговой службы по Нижегородской области | G35: НЕ УКАЗАНО | H35: 0 | I35: 178.44
C36: 1.01.02.04.0.01.1.000.110 | D36: Налог на доходы физических лиц в виде фиксированных авансовых платежей с доходов, полученных физическими лицами, являющимися иностранными гражданами, осуществляющими трудовую деятельность по найму на основании патента в соответствии со статьей 227.1 Налогового кодекса Российской Федерации (сумма платежа (перерасчеты, недоимка и задолженность по соответствующему платежу, в том числе по отмененному) | E36: Управление Федеральной налоговой службы по Нижегородской области | G36: НЕ УКАЗАНО | H36: 0 | I36: 178.44
B37: НАЛОГИ НА СОВОКУПНЫЙ ДОХОД | C37: 182. 1.05.00.00.0.00.0.000.000 | D37: НАЛОГИ НА СОВОКУПНЫЙ ДОХОД | E37: Управление Федеральной налоговой службы по Нижегородской области | G37: НЕ УКАЗАНО | H37: 3903.9 | I37: 5139.8 | J37: =J38+J56+J71+J79 -> 5358.02 | K37: =K38+K56+K71+K79 -> 5080.2 | L37: =L38+L56+L71+L79 -> 5448.1 | M37: 5765.9
B38: Налог, взимаемый в связи с применением упрощенной системы налогообложения | C38: 182. 1.05.01.00.0.00.0.000.110 | D38: Налог, взимаемый в связи с применением упрощенной системы налогообложения | E38: Управление Федеральной налоговой службы по Нижегородской области | G38: НЕ УКАЗАНО | H38: 3312.9 | I38: 3962.06 | J38: =J39+J47 -> 4114.68 | K38: =K47+K39 -> 3782.5 | L38: =L47+L39 -> 4069.9 | M38: 4301.9
C39: 182. 1.05.01.01.0.01.0.000.110 | D39: Налог, взимаемый с налогоплательщиков, выбравших в качестве объекта налогообложения доходы | E39: Управление Федеральной налоговой службы по Нижегородской области | G39: НЕ УКАЗАНО | H39: 2829.2 | I39: 2944.9 | J39: 3044.86 | K39: 3033.6 | L39: 3264.1 | M39: 3450.1
C40: 1.05.01.01.1.01.0.000.110 | D40: Налог, взимаемый с налогоплательщиков, выбравших в качестве объекта налогообложения доходы | E40: Управление Федеральной налоговой службы по Нижегородской области | G40: НЕ УКАЗАНО | H40: 1853.9 | I40: 1738.17
C41: 1.05.01.01.1.01.1.000.110 | D41: Налог, взимаемый с налогоплательщиков, выбравших в качестве объекта налогообложения доходы (сумма платежа (перерасчеты, недоимка и задолженность по соответствующему платежу, в том числе по отмененному) | E41: Управление Федеральной налоговой службы по Нижегородской области | G41: НЕ УКАЗАНО | H41: 1853.9 | I41: 1689.45
C42: 1.05.01.01.1.01.1.000.110 | D42: Налог, взимаемый с налогоплательщиков, выбравших в качестве объекта налогообложения доходы (сумма платежа (перерасчеты, недоимка и задолженность по соответствующему платежу, в том числе по отмененному) | E42: Управление Федеральной налоговой службы по Нижегородской области | G42: НЕ УКАЗАНО | H42: 1853.9 | I42: 1689.45
C43: 1.05.01.01.1.01.2.100.110 | D43: Налог, взимаемый с налогоплательщиков, выбравших в качестве объекта налогообложения доходы (пени по соответствующему платежу) | E43: Управление Федеральной налоговой службы по Нижегородской области | G43: НЕ УКАЗАНО | H43: 0 | I43: 48.02
C44: 1.05.01.01.1.01.2.100.110 | D44: Налог, взимаемый с налогоплательщиков, выбравших в качестве объекта налогообложения доходы (пени по соответствующему платежу) | E44: Управление Федеральной налоговой службы по Нижегородской области | G44: НЕ УКАЗАНО | H44: 0 | I44: 48.02
C45: 1.05.01.01.1.01.3.000.110 | D45: Налог, взимаемый с налогоплательщиков, выбравших в качестве объекта налогообложения доходы (суммы денежных взысканий (штрафов) по соответствующему платежу согласно законодательству Российской Федерации) | E45: Управление Федеральной налоговой службы по Нижегородской области | G45: НЕ УКАЗАНО | H45: 0 | I45: 0.7
C46: 1.05.01.01.1.01.3.000.110 | D46: Налог, взимаемый с налогоплательщиков, выбравших в качестве объекта налогообложения доходы (суммы денежных взысканий (штрафов) по соответствующему платежу согласно законодательству Российской Федерации) | E46: Управление Федеральной налоговой службы по Нижегородской области | G46: НЕ УКАЗАНО | H46: 0 | I46: 0.7
C47: 182. 1.05.01.02.0.01.0.000.110 | D47: Налог, взимаемый с налогоплательщиков, выбравших в качестве объекта налогообложения доходы, уменьшенные на величину расходов | E47: Управление Федеральной налоговой службы по Нижегородской области | G47: НЕ УКАЗАНО | H47: 483.7 | I47: 1017.16 | J47: 1069.82 | K47: 748.9 | L47: 805.8 | M47: 851.8
C48: 1.05.01.02.1.01.0.000.110 | D48: Налог, взимаемый с налогоплательщиков, выбравших в качестве объекта налогообложения доходы, уменьшенные на величину расходов (в том числе минимальный налог, зачисляемый в бюджеты субъектов Российской Федерации) | E48: Управление Федеральной налоговой службы по Нижегородской области | G48: НЕ УКАЗАНО | H48: 246.4 | I48: 415.22
C49: 1.05.01.02.1.01.1.000.110 | D49: Налог, взимаемый с налогоплательщиков, выбравших в качестве объекта налогообложения доходы, уменьшенные на величину расходов (в том числе минимальный налог, зачисляемый в бюджеты субъектов Российской Федерации (сумма платежа (перерасчеты, недоимка и задолженность по соответствующему платежу, в том числе по отмененному) | E49: Управление Федеральной налоговой службы по Нижегородской области | G49: НЕ УКАЗАНО | H49: 246.4 | I49: 413
C50: 1.05.01.02.1.01.1.000.110 | D50: Налог, взимаемый с налогоплательщиков, выбравших в качестве объекта налогообложения доходы, уменьшенные на величину расходов (в том числе минимальный налог, зачисляемый в бюджеты субъектов Российской Федерации (сумма платежа (перерасчеты, недоимка и задолженность по соответствующему платежу, в том числе по отмененному) | E50: Управление Федеральной налоговой службы по Нижегородской области | G50: НЕ УКАЗАНО | H50: 246.4 | I50: 413
C51: 1.05.01.02.1.01.2.100.110 | D51: Налог, взимаемый с налогоплательщиков, выбравших в качестве объекта налогообложения доходы, уменьшенные на величину расходов (в том числе минимальный налог, зачисляемый в бюджеты субъектов Российской Федерации (пени по соответствующему платежу) | E51: Управление Федеральной налоговой службы по Нижегородской области | G51: НЕ УКАЗАНО | H51: 0 | I51: 2.23
C52: 1.05.01.02.1.01.2.100.110 | D52: Налог, взимаемый с налогоплательщиков, выбравших в качестве объекта налогообложения доходы, уменьшенные на величину расходов (в том числе минимальный налог, зачисляемый в бюджеты субъектов Российской Федерации (пени по соответствующему платежу) | E52: Управление Федеральной налоговой службы по Нижегородской области | G52: НЕ УКАЗАНО | H52: 0 | I52: 2.23
C53: 182. 1.05.01.05.0.01.0.000.110 | D53: Минимальный налог, зачисляемый в бюджеты субъектов Российской Федерации (за налоговые периоды, истекшие до 1 января 2016 года) | E53: Управление Федеральной налоговой службы по Нижегородской области | G53: НЕ УКАЗАНО | H53: 0 | I53: 0
C54: 1.05.01.05.0.01.2.100.110 | D54: Минимальный налог, зачисляемый в бюджеты субъектов Российской Федерации (за налоговые периоды, истекшие до 1 января 2016 года) (пени по соответствующему платежу) | E54: Управление Федеральной налоговой службы по Нижегородской области | G54: НЕ УКАЗАНО | H54: 0 | I54: 0.01
C55: 1.05.01.05.0.01.2.100.110 | D55: Минимальный налог, зачисляемый в бюджеты субъектов Российской Федерации (за налоговые периоды, истекшие до 1 января 2016 года) (пени по соответствующему платежу) | E55: Управление Федеральной налоговой службы по Нижегородской области | G55: НЕ УКАЗАНО | H55: 0 | I55: 0.01
B56: Единый налог на вмененный доход для отдельных видов деятельности | C56: 182. 1.05.02.00.0.02.0.000.110 | D56: Единый налог на вмененный доход для отдельных видов деятельности | E56: Управление Федеральной налоговой службы по Нижегородской области | G56: НЕ УКАЗАНО | H56: 317.7 | I56: 474.23 | J56: =J57 -> 476 | K56: =K57+K66 -> 0 | L56: =L57+L66 -> 0 | M56: =M57+M66 -> 0
C57: 182.1.05.02.01.0.02.0.000.110 | D57: Единый налог на вмененный доход для отдельных видов деятельности | E57: Управление Федеральной налоговой службы по Нижегородской области | G57: НЕ УКАЗАНО | H57: 317.7 | I57: 474.23 | J57: 476 | K57: 0 | L57: 0 | M57: 0
C58: 1.05.02.01.0.02.1.000.110 | D58: Единый налог на вмененный доход для отдельных видов деятельности (сумма платежа (перерасчеты, недоимка и задолженность по соответствующему платежу, в том числе по отмененному) | E58: Управление Федеральной налоговой службы по Нижегородской области | G58: НЕ УКАЗАНО | H58: 2657.8 | I58: 1755.61
C59: 1.05.02.01.0.02.1.000.110 | D59: Единый налог на вмененный доход для отдельных видов деятельности (сумма платежа (перерасчеты, недоимка и задолженность по соответствующему платежу, в том числе по отмененному) | E59: Управление Федеральной налоговой службы по Нижегородской области | G59: НЕ УКАЗАНО | H59: 2657.8 | I59: 1755.61
C60: 1.05.02.01.0.02.2.100.110 | D60: Единый налог на вмененный доход для отдельных видов деятельности (пени по соответствующему платежу) | E60: Управление Федеральной налоговой службы по Нижегородской области | G60: НЕ УКАЗАНО | H60: 0 | I60: 3.48
C61: 1.05.02.01.0.02.2.100.110 | D61: Единый налог на вмененный доход для отдельных видов деятельности (пени по соответствующему платежу) | E61: Управление Федеральной налоговой службы по Нижегородской области | G61: НЕ УКАЗАНО | H61: 0 | I61: 3.48
C62: 1.05.02.01.0.02.3.000.110 | D62: Единый налог на вмененный доход для отдельных видов деятельности (суммы денежных взысканий (штрафов) по соответствующему платежу согласно законодательству Российской Федерации) | E62: Управление Федеральной налоговой службы по Нижегородской области | G62: НЕ УКАЗАНО | H62: 0 | I62: 6.58
C63: 1.05.02.01.0.02.3.000.110 | D63: Единый налог на вмененный доход для отдельных видов деятельности (суммы денежных взысканий (штрафов) по соответствующему платежу согласно законодательству Российской Федерации) | E63: Управление Федеральной налоговой службы по Нижегородской области | G63: НЕ УКАЗАНО | H63: 0 | I63: 6.58
C64: 1.05.02.01.0.02.4.000.110 | D64: Единый налог на вмененный доход для отдельных видов деятельности (прочие поступления) | E64: Управление Федеральной налоговой службы по Нижегородской области | G64: НЕ УКАЗАНО | H64: 0 | I64: 0.25
C65: 1.05.02.01.0.02.4.000.110 | D65: Единый налог на вмененный доход для отдельных видов деятельности (прочие поступления) | E65: Управление Федеральной налоговой службы по Нижегородской области | G65: НЕ УКАЗАНО | H65: 0 | I65: 0.25
C66: 182.1.05.02.02.0.02.0.000.110 | D66: Единый налог на вмененный доход для отдельных видов деятельности (за налоговые периоды, истекшие до 1 января 2011 года) | E66: Управление Федеральной налоговой службы по Нижегородской области | G66: НЕ УКАЗАНО | H66: 0 | I66: 0
C67: 1.05.02.02.0.02.2.100.110 | D67: Единый налог на вмененный доход для отдельных видов деятельности (за налоговые периоды, истекшие до 1 января 2011 года) (пени по соответствующему платежу) | E67: Управление Федеральной налоговой службы по Нижегородской области | G67: НЕ УКАЗАНО | H67: 0 | I67: 0.01
C68: 1.05.02.02.0.02.2.100.110 | D68: Единый налог на вмененный доход для отдельных видов деятельности (за налоговые периоды, истекшие до 1 января 2011 года) (пени по соответствующему платежу) | E68: Управление Федеральной налоговой службы по Нижегородской области | G68: НЕ УКАЗАНО | H68: 0 | I68: 0.01
C69: 1.05.02.02.0.02.3.000.110 | D69: Единый налог на вмененный доход для отдельных видов деятельности (за налоговые периоды, истекшие до 1 января 2011 года) (суммы денежных взысканий (штрафов) по соответствующему платежу согласно законодательству Российской Федерации) | E69: Управление Федеральной налоговой службы по Нижегородской области | G69: НЕ УКАЗАНО | H69: 0 | I69: 0.09
C70: 1.05.02.02.0.02.3.000.110 | D70: Единый налог на вмененный доход для отдельных видов деятельности (за налоговые периоды, истекшие до 1 января 2011 года) (суммы денежных взысканий (штрафов) по соответствующему платежу согласно законодательству Российской Федерации) | E70: Управление Федеральной налоговой службы по Нижегородской области | G70: НЕ УКАЗАНО | H70: 0 | I70: 0.09
B71: Единый сельскохозяйственный налог | C71: 182.1.05.03.00.0.01.0.000.110 | D71: Единый сельскохозяйственный налог | E71: Управление Федеральной налоговой службы по Нижегородской области | G71: НЕ УКАЗАНО | H71: 117.9 | I71: 381.34 | J71: =J72 -> 381.34 | K71: =K72 -> 274 | L71: =L72 -> 279.8 | M71: 285.4
C72: 182.1.05.03.01.0.01.0.000.110 | D72: Единый сельскохозяйственный налог | E72: Управление Федеральной налоговой службы по Нижегородской области | G72: НЕ УКАЗАНО | H72: 117.9 | I72: 381.34 | J72: 381.34 | K72: 274 | L72: 279.8 | M72: 285.4
C73: 1.05.03.01.0.01.1.000.110 | D73: Единый сельскохозяйственный налог (сумма платежа (перерасчеты, недоимка и задолженность по соответствующему платежу, в том числе по отмененному) | E73: Управление Федеральной налоговой службы по Нижегородской области | G73: НЕ УКАЗАНО | H73: 86.6 | I73: 354.25
C74: 1.05.03.01.0.01.1.000.110 | D74: Единый сельскохозяйственный налог (сумма платежа (перерасчеты, недоимка и задолженность по соответствующему платежу, в том числе по отмененному) | E74: Управление Федеральной налоговой службы по Нижегородской области | G74: НЕ УКАЗАНО | H74: 86.6 | I74: 354.25
C75: 1.05.03.01.0.01.2.100.110 | D75: Единый сельскохозяйственный налог (пени по соответствующему платежу) | E75: Управление Федеральной налоговой службы по Нижегородской области | G75: НЕ УКАЗАНО | H75: 0 | I75: 3.07
C76: 1.05.03.01.0.01.2.100.110 | D76: Единый сельскохозяйственный налог (пени по соответствующему платежу) | E76: Управление Федеральной налоговой службы по Нижегородской области | G76: НЕ УКАЗАНО | H76: 0 | I76: 3.07
C77: 1.05.03.01.0.01.3.000.110 | D77: Единый сельскохозяйственный налог (суммы денежных взысканий (штрафов) по соответствующему платежу согласно законодательству Российской Федерации) | E77: Управление Федеральной налоговой службы по Нижегородской области | G77: НЕ УКАЗАНО | H77: 0 | I77: 0.13
C78: 1.05.03.01.0.01.3.000.110 | D78: Единый сельскохозяйственный налог (суммы денежных взысканий (штрафов) по соответствующему платежу согласно законодательству Российской Федерации) | E78: Управление Федеральной налоговой службы по Нижегородской области | G78: НЕ УКАЗАНО | H78: 0 | I78: 0.13
B79: Налог, взимаемый в связи с применением патентной системы налогообложения | C79: 182.1.05.04.02.0.00.0.000.110 | D79: Налог, взимаемый в связи с применением патентной системы налогообложения | E79: Управление Федеральной налоговой службы по Нижегородской области | H79: 155.4 | I79: 322.17 | J79: =J80 -> 386 | K79: =K80 -> 1023.7 | L79: =L80 -> 1098.4 | M79: 1178.6
C80: 182.1.05.04.02.0.02.0.000.110 | D80: Налог, взимаемый в связи с применением патентной системы налогообложения, зачисляемый в бюджеты муниципальных районов | E80: Управление Федеральной налоговой службы по Нижегородской области | H80: 155.4 | I80: 322.17 | J80: 386 | K80: 1023.7 | L80: 1098.4 | M80: 1178.6
B81: ГОСУДАРСТВЕННАЯ ПОШЛИНА | C81: 000.1.08.00.00.0.00.0.000.000 | D81: ГОСУДАРСТВЕННАЯ ПОШЛИНА | G81: НЕ УКАЗАНО | H81: 601.9 | I81: 493.8 | J81: =J85+J88+J92+J95+J97+J101+J103 -> 559.5 | K81: =K85+K88+K92+K95+K97+K101+K103 -> 583.4 | L81: =L85+L88+L92+L95+L97+L101+L103 -> 607.2 | M81: =M85+M88+M92+M95+M97+M101+M103 -> 631.9
C82: 1.08.03.00.0.01.0.000.110 | D82: Государственная пошлина по делам, рассматриваемым в судах общей юрисдикции, мировыми судьями | E82: Управление Федеральной налоговой службы по Нижегородской области | G82: НЕ УКАЗАНО | H82: 562.2 | I82: 501.18
C83: 1.08.03.01.0.01.0.000.110 | D83: Государственная пошлина по делам, рассматриваемым в судах общей юрисдикции, мировыми судьями (за исключением Верховного Суда Российской Федерации) | E83: Управление Федеральной налоговой службы по Нижегородской области | G83: НЕ УКАЗАНО | H83: 562.2 | I83: 501.18
C84: 1.08.03.01.0.01.1.000.110 | D84: Государственная пошлина по делам, рассматриваемым в судах общей юрисдикции, мировыми судьями (за исключением Верховного Суда Российской Федерации) (сумма платежа (перерасчеты, недоимка и задолженность по соответствующему платежу, в том числе по отмененному) | E84: Управление Федеральной налоговой службы по Нижегородской области | G84: НЕ УКАЗАНО | H84: 562.2 | I84: 501.18
C85: 182.1.08.03.01.0.01.1.000.110 | D85: Государственная пошлина по делам, рассматриваемым в судах общей юрисдикции, мировыми судьями (за исключением Верховного Суда Российской Федерации) (сумма платежа (перерасчеты, недоимка и задолженность по соответствующему платежу, в том числе по отмененному) | E85: Управление Федеральной налоговой службы по Нижегородской области | G85: НЕ УКАЗАНО | H85: 601.9 | I85: 488.8 | J85: 554.5 | K85: 583.4 | L85: 607.2 | M85: 626.9
C86: 1.08.06.00.0.01.0.000.110 | D86: Государственная пошлина за совершение действий, связанных с приобретением гражданства Российской Федерации или выходом из гражданства Российской Федерации, а также с въездом в Российскую Федерацию или выездом из Российской Федерации | E86: Главное управление МВД России по Нижегородской области | G86: НЕ УКАЗАНО | H86: 23.9 | I86: 3
C87: 1.08.06.00.0.01.8.003.110 | D87: Государственная пошлина за совершение действий, связанных с приобретением гражданства Российской Федерации или выходом из гражданства Российской Федерации, а также с въездом в Российскую Федерацию или выездом из Российской Федерации (государственная пошлина за выдачу паспорта, удостоверяющего личность гражданина Российской Федерации за пределами территории Российской Федерации (при обращении через многофункциональные центры) | E87: Главное управление МВД России по Нижегородской области | G87: НЕ УКАЗАНО | H87: 23.9 | I87: 3
C88: 188.1.08.06.00.0.01.8.003.110 | D88: Государственная пошлина за совершение действий, связанных с приобретением гражданства Российской Федерации или выходом из гражданства Российской Федерации, а также с въездом в Российскую Федерацию или выездом из Российской Федерации (государственная пошлина за выдачу паспорта, удостоверяющего личность гражданина Российской Федерации за пределами территории Российской Федерации (при обращении через многофункциональные центры) | E88: Главное управление МВД России по Нижегородской области | G88: НЕ УКАЗАНО | H88: 0 | I88: 0 | J88: 0
C89: 1.08.07.00.0.01.0.000.110 | D89: Государственная пошлина за государственную регистрацию, а также за совершение прочих юридически значимых действий | G89: НЕ УКАЗАНО | H89: 633.1 | I89: 304.93
C90: 1.08.07.02.0.01.0.000.110 | D90: Государственная пошлина за государственную регистрацию прав, ограничений (обременений) прав на недвижимое имущество и сделок с ним | E90: Управление Федеральной службы государственной регистрации, кадастра и картографии по Нижегородской области | G90: НЕ УКАЗАНО | H90: 212.3 | I90: 166.63
C91: 1.08.07.02.0.01.8.000.110 | D91: Государственная пошлина за государственную регистрацию прав, ограничений (обременении) прав на недвижимое имущество и сделок с ним (при обращении через многофункциональные центры) | E91: Управление Федеральной службы государственной регистрации, кадастра и картографии по Нижегородской области | G91: НЕ УКАЗАНО | H91: 212.3 | I91: 166.63
C92: 321.1.08.07.02.0.01.8.000.110 | D92: Государственная пошлина за государственную регистрацию прав, ограничений (обременении) прав на недвижимое имущество и сделок с ним (при обращении через многофункциональные центры) | E92: Управление Федеральной службы государственной регистрации, кадастра и картографии по Нижегородской области | G92: НЕ УКАЗАНО | H92: 0 | I92: 0 | J92: 0
C93: 1.08.07.10.0.01.0.000.110 | D93: Государственная пошлина за выдачу и обмен паспорта гражданина Российской Федерации | E93: Главное управление МВД России по Нижегородской области | G93: НЕ УКАЗАНО | H93: 38.4 | I93: 36
C94: 1.08.07.10.0.01.8.034.110 | D94: Государственная пошлина за выдачу и обмен паспорта гражданина Российской Федерации (государственная пошлина за выдачу паспорта гражданина Российской Федерации (при обращении через многофункциональные центры) | E94: Главное управление МВД России по Нижегородской области | G94: НЕ УКАЗАНО | H94: 38.4 | I94: 30
C95: 188.1.08.07.10.0.01.8.034.110 | D95: Государственная пошлина за выдачу и обмен паспорта гражданина Российской Федерации (государственная пошлина за выдачу паспорта гражданина Российской Федерации (при обращении через многофункциональные центры) | E95: Главное управление МВД России по Нижегородской области | G95: НЕ УКАЗАНО | H95: 0 | I95: 0 | J95: 0
C96: 1.08.07.10.0.01.8.035.110 | D96: Государственная пошлина за выдачу и обмен паспорта гражданина Российской Федерации (государственная пошлина за выдачу паспорта гражданина Российской Федерации взамен утраченного или пришедшего в негодность (при обращении через многофункциональные центры) | E96: Главное управление МВД России по Нижегородской области | G96: НЕ УКАЗАНО | H96: 0 | I96: 6
C97: 188.1.08.07.10.0.01.8.035.110 | D97: Государственная пошлина за выдачу и обмен паспорта гражданина Российской Федерации (государственная пошлина за выдачу паспорта гражданина Российской Федерации взамен утраченного или пришедшего в негодность (при обращении через многофункциональные центры) | E97: Главное управление МВД России по Нижегородской области | G97: НЕ УКАЗАНО | H97: 0 | I97: 0 | J97: 0
C98: 1.08.07.14.0.01.0.000.110 | D98: Государственная пошлина за государственную регистрацию транспортных средств и иные юридически значимые действия, связанные с изменениями и выдачей документов на транспортные средства, регистрационных знаков, водительских удостоверений | E98: Главное управление МВД России по Нижегородской области | G98: НЕ УКАЗАНО | H98: 377.4 | I98: 102.3
C99: 1.08.07.14.1.01.0.000.110 | D99: Государственная пошлина за государственную регистрацию транспортных средств и иные юридически значимые действия уполномоченных федеральных государственных органов, связанные с изменением и выдачей документов на транспортные средства, регистрационных знаков, водительских удостоверений | E99: Главное управление МВД России по Нижегородской области | G99: НЕ УКАЗАНО | H99: 377.4 | I99: 102.3
C100: 1.08.07.14.1.01.8.000.110 | D100: Государственная пошлина за государственную регистрацию транспортных средств и иные юридически значимые действия уполномоченных федеральных государственных органов, связанные с изменением и выдачей документов на транспортные средства, регистрационных знаков, водительских удостоверений (при обращении через многофункциональные центры) | E100: Главное управление МВД России по Нижегородской области | G100: НЕ УКАЗАНО | H100: 377.4 | I100: 102.3
C101: 188.1.08.07.14.1.01.8.000.110 | D101: Государственная пошлина за государственную регистрацию транспортных средств и иные юридически значимые действия уполномоченных федеральных государственных органов, связанные с изменением и выдачей документов на транспортные средства, регистрационных знаков, водительских удостоверений (при обращении через многофункциональные центры) | E101: Главное управление МВД России по Нижегородской области | G101: НЕ УКАЗАНО | H101: 0 | I101: 0 | J101: 0
C102: 1.08.07.15.0.01.0.000.110 | D102: Государственная пошлина за выдачу разрешения на установку рекламной конструкции | E102: Администрация Тонкинского муниципального района Нижегородской области | G102: НЕ УКАЗАНО | H102: 5 | I102: 0
C103: 487.1.08.07.15.0.01.0.000.110 | D103: Государственная пошлина за выдачу разрешения на установку рекламной конструкции | E103: Администрация Тонкинского муниципального района Нижегородской области | G103: НЕ УКАЗАНО | H103: 0 | I103: 5 | J103: 5 | K103: 0 | L103: 0 | M103: 5
B104: ДОХОДЫ ОТ ИСПОЛЬЗОВАНИЯ ИМУЩЕСТВА, НАХОДЯЩЕГОСЯ В ГОСУДАРСТВЕННОЙ И МУНИЦИПАЛЬНОЙ СОБСТВЕННОСТИ | C104: 366.1.11.00.00.0.00.0.000.000 | D104: ДОХОДЫ ОТ ИСПОЛЬЗОВАНИЯ ИМУЩЕСТВА, НАХОДЯЩЕГОСЯ В ГОСУДАРСТВЕННОЙ И МУНИЦИПАЛЬНОЙ СОБСТВЕННОСТИ | E104: Комитет по управлению муниципальным имуществом и земельными ресурсами администрации Тонкинского муниципального района Нижегородской области | G104: НЕ УКАЗАНО | H104: 1827.9 | I104: 1570.36 | J104: =J105+J117 -> 2008.8 | K104: =K105+K117 -> 1961.6 | L104: =L105+L117 -> 2039.9 | M104: 2113.7
B105: Доходы, получаемые в виде арендной либо иной платы за передачу в возмездное пользование государственного и муниципального имущества (за исключением имущества бюджетных и автономных учреждений, а также имущества государственных и муниципальных унитарных предприятий, в том числе казенных) | C105: 366.1.11.05.00.0.00.0.000.120 | D105: Доходы, получаемые в виде арендной либо иной платы за передачу в возмездное пользование государственного и муниципального имущества (за исключением имущества бюджетных и автономных учреждений, а также имущества государственных и муниципальных унитарных предприятий, в том числе казенных) | E105: Комитет по управлению муниципальным имуществом и земельными ресурсами администрации Тонкинского муниципального района Нижегородской области | G105: НЕ УКАЗАНО | H105: 1777.9 | I105: 1457.66 | J105: =J106+J111+J114 -> 1896.1 | K105: =K106+K111+K114 -> 1861.6 | L105: =L106+L111+L114 -> 1935.9 | M105: 2005.5
C106: 366.1.11.05.01.0.00.0.000.120 | D106: Доходы, получаемые в виде арендной платы за земельные участки, государственная собственность на которые не разграничена, а также средства от продажи права на заключение договоров аренды указанных земельных участков | E106: Комитет по управлению муниципальным имуществом и земельными ресурсами администрации Тонкинского муниципального района Нижегородской области | G106: НЕ УКАЗАНО | H106: 1072.5 | I106: 1112.93 | J106: 1139.85 | K106: 1133.8 | L106: 1179.5 | M106: 1222.1
C107: 1.11.05.01.3.05.0.000.120 | D107: Доходы, получаемые в виде арендной платы за земельные участки, государственная собственность на которые не разграничена и которые расположены в границах сельских поселений и межселенных территорий муниципальных районов, а также средства от продажи права на заключение договоров аренды указанных земельных участков | E107: Комитет по управлению муниципальным имуществом и земельными ресурсами администрации Тонкинского муниципального района Нижегородской области | G107: НЕ УКАЗАНО | H107: 289 | I107: 330.12
C108: 1.11.05.01.3.05.0.000.120 | D108: Доходы, получаемые в виде арендной платы за земельные участки, государственная собственность на которые не разграничена и которые расположены в границах сельских поселений и межселенных территорий муниципальных районов, а также средства от продажи права на заключение договоров аренды указанных земельных участков | E108: Комитет по управлению муниципальным имуществом и земельными ресурсами администрации Тонкинского муниципального района Нижегородской области | G108: НЕ УКАЗАНО | H108: 289 | I108: 330.12
C109: 1.11.05.01.3.13.0.000.120 | D109: Доходы, получаемые в виде арендной платы за земельные участки, государственная собственность на которые не разграничена и которые расположены в границах городских поселений, а также средства от продажи права на заключение договоров аренды указанных земельных участков | E109: Комитет по управлению муниципальным имуществом и земельными ресурсами администрации Тонкинского муниципального района Нижегородской области | G109: НЕ УКАЗАНО | H109: 723.5 | I109: 612.27
C110: 1.11.05.01.3.13.0.000.120 | D110: Доходы, получаемые в виде арендной платы за земельные участки, государственная собственность на которые не разграничена и которые расположены в границах городских поселений, а также средства от продажи права на заключение договоров аренды указанных земельных участков | E110: Комитет по управлению муниципальным имуществом и земельными ресурсами администрации Тонкинского муниципального района Нижегородской области | G110: НЕ УКАЗАНО | H110: 723.5 | I110: 612.27
C111: 366.1.11.05.02.0.00.0.000.120 | D111: Доходы, получаемые в виде арендной платы за земли после разграничения государственной собственности на землю, а также средства от продажи права на заключение договоров аренды указанных земельных участков (за исключением земельных участков бюджетных и автономных учреждений) | E111: Комитет по управлению муниципальным имуществом и земельными ресурсами администрации Тонкинского муниципального района Нижегородской области | G111: НЕ УКАЗАНО | H111: 76.2 | I111: 113.57 | J111: 126.65 | K111: 78.8 | L111: 81.4 | M111: 81.4
C112: 1.11.05.02.5.05.0.000.120 | D112: Доходы, получаемые в виде арендной платы, а также средства от продажи права на заключение договоров аренды за земли, находящиеся в собственности муниципальных районов (за исключением земельных участков муниципальных бюджетных и автономных учреждений) | E112: Комитет по управлению муниципальным имуществом и земельными ресурсами администрации Тонкинского муниципального района Нижегородской области | G112: НЕ УКАЗАНО | H112: 76.2 | I112: 98.41
C113: 1.11.05.02.5.05.0.000.120 | D113: Доходы, получаемые в виде арендной платы, а также средства от продажи права на заключение договоров аренды за земли, находящиеся в собственности муниципальных районов (за исключением земельных участков муниципальных бюджетных и автономных учреждений) | E113: Комитет по управлению муниципальным имуществом и земельными ресурсами администрации Тонкинского муниципального района Нижегородской области | G113: НЕ УКАЗАНО | H113: 76.2 | I113: 98.41
C114: 366.1.11.05.07.0.00.0.000.120 | D114: Доходы от сдачи в аренду имущества, составляющего государственную (муниципальную) казну (за исключением земельных участков) | E114: Комитет по управлению муниципальным имуществом и земельными ресурсами администрации Тонкинского муниципального района Нижегородской области | G114: НЕ УКАЗАНО | H114: 629.2 | I114: 231.16 | J114: 629.6 | K114: 649 | L114: 675 | M114: 702
C115: 1.11.05.07.5.05.0.000.120 | D115: Доходы от сдачи в аренду имущества, составляющего казну муниципальных районов (за исключением земельных участков) | E115: Комитет по управлению муниципальным имуществом и земельными ресурсами администрации Тонкинского муниципального района Нижегородской области | G115: НЕ УКАЗАНО | H115: 946.9 | I115: 253.76
C116: 1.11.05.07.5.05.0.000.120 | D116: Доходы от сдачи в аренду имущества, составляющего казну муниципальных районов (за исключением земельных участков) | E116: Комитет по управлению муниципальным имуществом и земельными ресурсами администрации Тонкинского муниципального района Нижегородской области | G116: НЕ УКАЗАНО | H116: 946.9 | I116: 253.76
B117: Платежи от государственных и муниципальных унитарных предприятий | C117: 366.1.11.07.00.0.00.0.000.120 | D117: Платежи от государственных и муниципальных унитарных предприятий | E117: Комитет по управлению муниципальным имуществом и земельными ресурсами администрации Тонкинского муниципального района Нижегородской области | G117: НЕ УКАЗАНО | H117: 50 | I117: 112.7 | J117: =J118 -> 112.7 | K117: =K118 -> 100 | L117: =L118 -> 104 | M117: 108.2
C118: 366.1.11.07.01.0.00.0.000.120 | D118: Доходы от перечисления части прибыли государственных и муниципальных унитарных предприятий, остающейся после уплаты налогов и обязательных платежей | E118: Комитет по управлению муниципальным имуществом и земельными ресурсами администрации Тонкинского муниципального района Нижегородской области | G118: НЕ УКАЗАНО | H118: 50 | I118: 112.7 | J118: 112.7 | K118: 100 | L118: 104 | M118: 108.2
C119: 1.11.07.01.5.05.0.000.120 | D119: Доходы от перечисления части прибыли, остающейся после уплаты налогов и иных обязательных платежей муниципальных унитарных предприятий, созданных муниципальными районами | E119: Комитет по управлению муниципальным имуществом и земельными ресурсами администрации Тонкинского муниципального района Нижегородской области | G119: НЕ УКАЗАНО | H119: 35 | I119: 54.18
C120: 1.11.07.01.5.05.0.000.120 | D120: Доходы от перечисления части прибыли, остающейся после уплаты налогов и иных обязательных платежей муниципальных унитарных предприятий, созданных муниципальными районами | E120: Комитет по управлению муниципальным имуществом и земельными ресурсами администрации Тонкинского муниципального района Нижегородской области | G120: НЕ УКАЗАНО | H120: 35 | I120: 54.18
B121: ПЛАТЕЖИ ПРИ ПОЛЬЗОВАНИИ ПРИРОДНЫМИ РЕСУРСАМИ | C121: 048.1.12.00.00.0.00.0.000.000 | D121: ПЛАТЕЖИ ПРИ ПОЛЬЗОВАНИИ ПРИРОДНЫМИ РЕСУРСАМИ | E121: Федеральная служба по надзору в сфере природопользования | G121: НЕ УКАЗАНО | H121: 79.1 | I121: 54.09 | J121: =J122 -> 55 | K121: =K122 -> 59.8 | L121: =L122 -> 62.2 | M121: 64.7
B122: Плата за негативное воздействие на окружающую среду | C122: 048.1.12.01.00.0.01.0.000.120 | D122: Плата за негативное воздействие на окружающую среду | E122: Федеральная служба по надзору в сфере природопользования | G122: НЕ УКАЗАНО | H122: 79.1 | I122: 54.09 | J122: =J123+J126+J129 -> 55 | K122: =K123+K126+K129 -> 59.8 | L122: =L123+L126+L129 -> 62.2 | M122: 64.7
C123: 048.1.12.01.01.0.01.0.000.120 | D123: Плата за выбросы загрязняющих веществ в атмосферный воздух стационарными объектами | E123: Федеральная служба по надзору в сфере природопользования | G123: НЕ УКАЗАНО | H123: 79.1 | I123: 54.09 | J123: 55 | K123: 59.8 | L123: 62.2 | M123: 64.7
C124: 1.12.01.01.0.01.6.000.120 | D124: Плата за выбросы загрязняющих веществ в атмосферный воздух стационарными объектами (федеральные государственные органы, Банк России, органы управления государственными внебюджетными фондами Российской Федерации) | E124: Федеральная служба по надзору в сфере природопользования | G124: НЕ УКАЗАНО | H124: 31.6 | I124: 63.44
C125: 1.12.01.01.0.01.6.000.120 | D125: Плата за выбросы загрязняющих веществ в атмосферный воздух стационарными объектами (федеральные государственные органы, Банк России, органы управления государственными внебюджетными фондами Российской Федерации) | E125: Федеральная служба по надзору в сфере природопользования | G125: НЕ УКАЗАНО | H125: 31.6 | I125: 63.44
C126: 048.1.12.01.03.0.01.0.000.120 | D126: Плата за сбросы загрязняющих веществ в водные объекты | E126: Федеральная служба по надзору в сфере природопользования | G126: НЕ УКАЗАНО | H126: 0 | I126: 0 | J126: 0
C127: 1.12.01.03.0.01.6.000.120 | D127: Плата за сбросы загрязняющих веществ в водные объекты (федеральные государственные органы, Банк России, органы управления государственными внебюджетными фондами Российской Федерации) | E127: Федеральная служба по надзору в сфере природопользования | G127: НЕ УКАЗАНО | H127: 36.4 | I127: -1.72
C128: 1.12.01.03.0.01.6.000.120 | D128: Плата за сбросы загрязняющих веществ в водные объекты (федеральные государственные органы, Банк России, органы управления государственными внебюджетными фондами Российской Федерации) | E128: Федеральная служба по надзору в сфере природопользования | G128: НЕ УКАЗАНО | H128: 36.4 | I128: -1.72
C129: 048.1.12.01.04.0.01.0.000.120 | D129: Плата за размещение отходов производства и потребления | E129: Федеральная служба по надзору в сфере природопользования | G129: НЕ УКАЗАНО | H129: 0 | I129: 0 | J129: 0
C130: 1.12.01.04.1.01.0.000.120 | D130: Плата за размещение отходов производства | E130: Федеральная служба по надзору в сфере природопользования | G130: НЕ УКАЗАНО | H130: 12.3 | I130: -6.86
C131: 1.12.01.04.1.01.6.000.120 | D131: Плата за размещение отходов производства (федеральные государственные органы, Банк России, органы управления государственными внебюджетными фондами Российской Федерации) | E131: Федеральная служба по надзору в сфере природопользования | G131: НЕ УКАЗАНО | H131: 12.3 | I131: -6.86
C132: 1.12.01.04.1.01.6.000.120 | D132: Плата за размещение отходов производства (федеральные государственные органы, Банк России, органы управления государственными внебюджетными фондами Российской Федерации) | E132: Федеральная служба по надзору в сфере природопользования | G132: НЕ УКАЗАНО | H132: 12.3 | I132: -6.86
C133: 1.12.01.04.2.01.0.000.120 | D133: Плата за размещение твердых коммунальных отходов | E133: Федеральная служба по надзору в сфере природопользования | G133: НЕ УКАЗАНО | H133: 0.2 | I133: 0
C134: 1.12.01.04.2.01.6.000.120 | D134: Плата за размещение твердых коммунальных отходов (федеральные государственные органы, Банк России, органы управления государственными внебюджетными фондами Российской Федерации) | E134: Федеральная служба по надзору в сфере природопользования | G134: НЕ УКАЗАНО | H134: 0.2 | I134: 0
C135: 1.12.01.04.2.01.6.000.120 | D135: Плата за размещение твердых коммунальных отходов (федеральные государственные органы, Банк России, органы управления государственными внебюджетными фондами Российской Федерации) | E135: Федеральная служба по надзору в сфере природопользования | G135: НЕ УКАЗАНО | H135: 0.2 | I135: 0
B136: ДОХОДЫ ОТ ОКАЗАНИЯ ПЛАТНЫХ УСЛУГ И КОМПЕНСАЦИИ ЗАТРАТ ГОСУДАРСТВА | C136: 074.1.13.00.00.0.00.0.000.000 | D136: ДОХОДЫ ОТ ОКАЗАНИЯ ПЛАТНЫХ УСЛУГ И КОМПЕНСАЦИИ ЗАТРАТ ГОСУДАРСТВА | E136: Управление образования и молодёжной политики администрации Тонкинского муниципального района Нижегородской области | G136: НЕ УКАЗАНО | H136: 0 | I136: 20.45 | J136: 20.45 | K136: =K137+K138 -> 0 | L136: =L137+L138 -> 0 | M136: 0
B137: Доходы от компенсации затрат государства | C137: 487.1.13.02.00.0.00.0.000.130 | D137: Доходы от компенсации затрат государства | E137: Управление образования и молодёжной политики администрации Тонкинского муниципального района Нижегородской области | G137: НЕ УКАЗАНО | H137: 0 | I137: 20.45 | J137: 20.45 | K137: 0 | L137: 0 | M137: 0
C138: 487.1.13.02.99.0.00.0.000.130 | D138: Прочие доходы от компенсации затрат государства | E138: Управление образования и молодёжной политики администрации Тонкинского муниципального района Нижегородской области | G138: НЕ УКАЗАНО | H138: 0 | I138: 20.45 | J138: 20.45 | K138: 0 | L138: 0 | M138: 0
C139: 1.13.02.99.5.05.0.000.130 | D139: Прочие доходы от компенсации затрат бюджетов муниципальных районов | E139: Управление образования и молодёжной политики администрации Тонкинского муниципального района Нижегородской области | G139: НЕ УКАЗАНО | H139: 0 | I139: 13.72
C140: 1.13.02.99.5.05.0.013.130 | D140: Прочие доходы от компенсации затрат бюджетов муниципальных районов, источником которых являются средства районного бюджета | E140: Управление образования и молодёжной политики администрации Тонкинского муниципального района Нижегородской области | G140: НЕ УКАЗАНО | H140: 0 | I140: 13.72
C141: 1.13.02.99.5.05.0.013.130 | D141: Прочие доходы от компенсации затрат бюджетов муниципальных районов, источником которых являются средства районного бюджета | E141: Управление образования и молодёжной политики администрации Тонкинского муниципального района Нижегородской области | G141: НЕ УКАЗАНО | H141: 0 | I141: 13.72
B142: ДОХОДЫ ОТ ПРОДАЖИ МАТЕРИАЛЬНЫХ И НЕМАТЕРИАЛЬНЫХ АКТИВОВ | C142: 366.1.14.00.00.0.00.0.000.000 | D142: ДОХОДЫ ОТ ПРОДАЖИ МАТЕРИАЛЬНЫХ И НЕМАТЕРИАЛЬНЫХ АКТИВОВ | E142: Комитет по управлению муниципальным имуществом и земельными ресурсами администрации Тонкинского муниципального района Нижегородской области | G142: НЕ УКАЗАНО | H142: 125 | I142: 543.48 | J142: =J143 -> 543.48 | K142: =K143 -> 200 | L142: =L143 -> 180 | M142: 162
B143: Доходы от реализации имущества, находящегося в государственной и муниципальной собственности (за исключением движимого имущества бюджетных и автономных учреждений, а также имущества государственных и муниципальных унитарных предприятий, в том числе казенных) | C143: 366.1.14.02.00.0.00.0.000.000 | D143: Доходы от реализации имущества, находящегося в государственной и муниципальной собственности (за исключением движимого имущества бюджетных и автономных учреждений, а также имущества государственных и муниципальных унитарных предприятий, в том числе казенных) | E143: Комитет по управлению муниципальным имуществом и земельными ресурсами администрации Тонкинского муниципального района Нижегородской области | G143: НЕ УКАЗАНО | H143: 100 | I143: 543.48 | J143: 543.48 | K143: 200 | L143: 180 | M143: 162
C144: 366.1.14.02.05.0.05.0.000.410 | D144: Доходы от реализации имущества, находящегося в собственности муниципальных районов (за исключением движимого имущества муниципальных бюджетных и автономных учреждений, а также имущества муниципальных унитарных предприятий, в том числе казенных), в части реализации основных средств по указанному имуществу | E144: Комитет по управлению муниципальным имуществом и земельными ресурсами администрации Тонкинского муниципального района Нижегородской области | G144: НЕ УКАЗАНО | H144: 100 | I144: 543.48 | J144: 543.48 | K144: 200 | L144: 180 | M144: 162
C145: 1.14.02.05.3.05.0.000.410 | D145: Доходы от реализации иного имущества, находящегося в собственности муниципальных районов (за исключением имущества муниципальных бюджетных и автономных учреждений, а также имущества муниципальных унитарных предприятий, в том числе казенных), в части реализации основных средств по указанному имуществу | E145: Комитет по управлению муниципальным имуществом и земельными ресурсами администрации Тонкинского муниципального района Нижегородской области | G145: НЕ УКАЗАНО | H145: 50 | I145: 4084.45
C146: 1.14.02.05.3.05.0.000.410 | D146: Доходы от реализации иного имущества, находящегося в собственности муниципальных районов (за исключением имущества муниципальных бюджетных и автономных учреждений, а также имущества муниципальных унитарных предприятий, в том числе казенных), в части реализации основных средств по указанному имуществу | E146: Комитет по управлению муниципальным имуществом и земельными ресурсами администрации Тонкинского муниципального района Нижегородской области | G146: НЕ УКАЗАНО | H146: 50 | I146: 4084.45
B147: Доходы от продажи земельных участков, находящихся в государственной и муниципальной собственности | C147: 366.1.14.06.00.0.00.0.000.430 | D147: Доходы от продажи земельных участков, находящихся в государственной и муниципальной собственности | E147: Комитет по управлению муниципальным имуществом и земельными ресурсами администрации Тонкинского муниципального района Нижегородской области | G147: НЕ УКАЗАНО | H147: 25 | I147: 0 | J147: =J148 -> 0 | K147: =K148 -> 25 | L147: =L148 -> 22.5 | M147: 20.3
C148: 366.1.14.06.01.0.00.0.000.430 | D148: Доходы от продажи земельных участков, государственная собственность на которые не разграничена | E148: Комитет по управлению муниципальным имуществом и земельными ресурсами администрации Тонкинского муниципального района Нижегородской области | G148: НЕ УКАЗАНО | H148: 25 | I148: 0 | J148: 0 | K148: 25 | L148: 22.5 | M148: 20.3
C149: 1.14.06.01.3.13.0.000.430 | D149: Доходы от продажи земельных участков, государственная собственность на которые не разграничена и которые расположены в границах городских поселений | E149: Комитет по управлению муниципальным имуществом и земельными ресурсами администрации Тонкинского муниципального района Нижегородской области | G149: НЕ УКАЗАНО | H149: 100 | I149: 0
C150: 1.14.06.01.3.13.0.000.430 | D150: Доходы от продажи земельных участков, государственная собственность на которые не разграничена и которые расположены в границах городских поселений | E150: Комитет по управлению муниципальным имуществом и земельными ресурсами администрации Тонкинского муниципального района Нижегородской области | G150: НЕ УКАЗАНО | H150: 100 | I150: 0
B151: ШТРАФЫ, САНКЦИИ, ВОЗМЕЩЕНИЕ УЩЕРБА | C151: 000.1.16.00.00.0.00.0.000.000 | D151: ШТРАФЫ, САНКЦИИ, ВОЗМЕЩЕНИЕ УЩЕРБА | G151: НЕ УКАЗАНО | H151: 85.9 | I151: 806.35 | J151: =J156+J157+J158+J162+J166+J170+J172+J174+J178+J180+J182+J186+J187+J188+J189+J190+J191+J192+J193+J194+J207+J211+J213+J214 -> 852.83 | K151: =K156+K157+K158+K162+K166+K170+K172+K174+K178+K180+K182+K186+K187+K188+K189+K190+K191+K192+K194+K207+K211+K213+K214 -> 163.7 | L151: =L156+L157+L158+L162+L166+L170+L172+L174+L178+L180+L182+L186+L187+L188+L189+L190+L191+L192+L194+L207+L211+L213+L214 -> 170.2 | M151: 177
C152: 1.16.01.00.0.01.0.000.140 | D152: Административные штрафы, установленные Кодексом Российской Федерации об административных правонарушениях | G152: НЕ УКАЗАНО | H152: 37.9 | I152: 90.45
C153: 1.16.01.05.0.01.0.000.140 | D153: Административные штрафы, установленные Главой 5 Кодекса Российской Федерации об административных правонарушениях, за административные правонарушения, посягающие на права граждан | E153: Министерство социальной политики Нижегородской области | G153: НЕ УКАЗАНО | H153: 0 | I153: 0.5
C154: 1.16.01.05.3.01.0.000.140 | D154: Административные штрафы, установленные Главой 5 Кодекса Российской Федерации об административных правонарушениях, за административные правонарушения, посягающие на права граждан, налагаемые мировыми судьями, комиссиями по делам несовершеннолетних и защите их прав | E154: Министерство социальной политики Нижегородской области | G154: НЕ УКАЗАНО | H154: 0 | I154: 0.5
C155: 1.16.01.05.3.01.0.035.140 | D155: Административные штрафы, установленные Главой 5 Кодекса Российской Федерации об административных правонарушениях, за административные правонарушения, посягающие на права граждан, налагаемые мировыми судьями, комиссиями по делам несовершеннолетних и защите их прав ( штрафы за неисполнение родителями или иными законными представителями несовершеннолетних обязанностей по содержанию и воспитанию несовершеннолетних) | E155: Министерство социальной политики Нижегородской области | G155: НЕ УКАЗАНО | H155: 0 | I155: 0.5
C156: 056.1.16.10.12.3.01.0.051.140 | D156: Доходы от денежных взысканий (штрафов), поступающие в счет погашения задолженности, образовавшейся до 1 января 2020 года, подлежащие зачислению в бюджет муниципального образования по нормативам, действовавшим в 2019 году (доходы бюджетов муниципальных районов за исключением доходов, направляемых на формирование муниципального дорожного фонда, а также иных платежей в случае принятия решения финансовым органом муниципального образования о раздельном учете задолженности) | E156: Департамент лесного хозяйства Нижегородской области | H156: 0 | I156: 91 | J156: 91
C157: 056.1.16.11.05.0.01.0.000.140 | D157: Платежи по искам о возмещении вреда, причиненного окружающей среде, а также платежи, уплачиваемые при добровольном возмещении вреда, причиненного окружающей среде (за исключением вреда, причиненного окружающей среде на особо охраняемых природных территориях, а также вреда, причиненного водным объектам), подлежащие зачислению в бюджет муниципального образования | E157: Департамент лесного хозяйства Нижегородской области | H157: 0 | I157: 464.73 | J157: 464.73 | K157: 32.7 | L157: 34.6 | M157: 36.7
C158: 150.1.16.01.05.3.01.0.035.140 | D158: Административные штрафы, установленные Главой 5 Кодекса Российской Федерации об административных правонарушениях, за административные правонарушения, посягающие на права граждан, налагаемые мировыми судьями, комиссиями по делам несовершеннолетних и защите их прав ( штрафы за неисполнение родителями или иными законными представителями несовершеннолетних обязанностей по содержанию и воспитанию несовершеннолетних) | E158: Министерство социальной политики Нижегородской области | G158: НЕ УКАЗАНО | H158: 0 | I158: 1.7 | J158: 1.7
C159: 1.16.01.06.0.01.0.000.140 | D159: Административные штрафы, установленные Главой 6 Кодекса Российской Федерации об административных правонарушениях, за административные правонарушения, посягающие на здоровье, санитарно-эпидемиологическое благополучие населения и общественную нравственность | E159: Министерство социальной политики Нижегородской области | G159: НЕ УКАЗАНО | H159: 0 | I159: 0.25
C160: 1.16.01.06.3.01.0.000.140 | D160: Административные штрафы, установленные Главой 6 Кодекса Российской Федерации об административных правонарушениях, за административные правонарушения, посягающие на здоровье, санитарно-эпидемиологическое благополучие населения и общественную нравственность, налагаемые мировыми судьями, комиссиями по делам несовершеннолетних и защите их прав | E160: Министерство социальной политики Нижегородской области | G160: НЕ УКАЗАНО | H160: 0 | I160: 0.25
C161: 1.16.01.06.3.01.0.023.140 | D161: Административные штрафы, установленные Главой 6 Кодекса Российской Федерации об административных правонарушениях, за административные правонарушения, посягающие на здоровье, санитарно-эпидемиологическое благополучие населения и общественную нравственность, налагаемые мировыми судьями, комиссиями по делам несовершеннолетних и защите их прав ( штрафы за вовлечение несовершеннолетнего в процесс потребления табака) | E161: Министерство социальной политики Нижегородской области | G161: НЕ УКАЗАНО | H161: 0 | I161: 0.25
C162: 150.1.16.01.20.3.01.9.000.140 | D162: Административные штрафы, установленные Главой 20 Кодекса Российской Федерации об административных правонарушениях, за административные правонарушения, посягающие на общественный порядок и общественную безопасность, налагаемые мировыми судьями, комиссиями по делам несовершеннолетних и защите их прав ( иные штрафы) | E162: Министерство социальной политики Нижегородской области | G162: НЕ УКАЗАНО | H162: 5.9 | I162: 0 | J162: 0
C163: 1.16.01.08.0.01.0.000.140 | D163: Административные штрафы, установленные Главой 8 Кодекса Российской Федерации об административных правонарушениях, за административные правонарушения в области охраны окружающей среды и природопользования | E163: Управление по обеспечению деятельности мировых судей, адвокатуры и нотариата Нижегородской области | G163: НЕ УКАЗАНО | H163: 0 | I163: 69.5
C164: 1.16.01.08.3.01.0.000.140 | D164: Административные штрафы, установленные Главой 8 Кодекса Российской Федерации об административных правонарушениях, за административные правонарушения в области охраны окружающей среды и природопользования, налагаемые мировыми судьями, комиссиями по делам несовершеннолетних и защите их прав | E164: Управление по обеспечению деятельности мировых судей, адвокатуры и нотариата Нижегородской области | G164: НЕ УКАЗАНО | H164: 0 | I164: 69.5
C165: 1.16.01.08.3.01.0.281.140 | D165: Административные штрафы, установленные Главой 8 Кодекса Российской Федерации об административных правонарушениях, за административные правонарушения в области охраны окружающей среды и природопользования, налагаемые мировыми судьями, комиссиями по делам несовершеннолетних и защите их прав | E165: Управление по обеспечению деятельности мировых судей, адвокатуры и нотариата Нижегородской области | G165: НЕ УКАЗАНО | H165: 0 | I165: 69.5
C166: 218.1.16.01.05.3.01.0.059.140 | D166: Административные штрафы, установленные Главой 5 Кодекса Российской Федерации об административных правонарушениях, за административные правонарушения, посягающие на права граждан, налагаемые мировыми судьями, комиссиями по делам несовершеннолетних и защите их прав | E166: Управление по обеспечению деятельности мировых судей, адвокатуры и нотариата Нижегородской области | G166: НЕ УКАЗАНО | H166: 0 | I166: 2.5 | J166: 2.5
C167: 1.16.01.15.0.01.0.000.140 | D167: Административные штрафы, установленные Главой 15 Кодекса Российской Федерации об административных правонарушениях, за административные правонарушения в области финансов, налогов и сборов, страхования, рынка ценных бумаг | E167: Управление по обеспечению деятельности мировых судей, адвокатуры и нотариата Нижегородской области | G167: НЕ УКАЗАНО | H167: 0 | I167: 1.5
C168: 1.16.01.15.3.01.0.000.140 | D168: Административные штрафы, установленные Главой 15 Кодекса Российской Федерации об административных правонарушениях, за административные правонарушения в области финансов, налогов и сборов, страхования, рынка ценных бумаг (за исключением штрафов, указанных в пункте 6 статьи 46 Бюджетного кодекса Российской Федерации), налагаемые мировыми судьями, комиссиями по делам несовершеннолетних и защите их прав | E168: Управление по обеспечению деятельности мировых судей, адвокатуры и нотариата Нижегородской области | G168: НЕ УКАЗАНО | H168: 0 | I168: 1.5
C169: 1.16.01.15.3.01.0.005.140 | D169: Административные штрафы, установленные Главой 15 Кодекса Российской Федерации об административных правонарушениях, за административные правонарушения в области финансов, налогов и сборов, страхования, рынка ценных бумаг (за исключением штрафов, указанных в пункте 6 статьи 46 Бюджетного кодекса Российской Федерации), налагаемые мировыми судьями, комиссиями по делам несовершеннолетних и защите их прав | E169: Управление по обеспечению деятельности мировых судей, адвокатуры и нотариата Нижегородской области | G169: НЕ УКАЗАНО | H169: 0 | I169: 0.3
C170: 218.1.16.01.05.3.01.9.000.140 | D170: Административные штрафы, установленные главой 5 Кодекса Российской Федерации об административных правонарушениях, за административные правонарушения, посягающие на права граждан, налагаемые мировыми судьями, комиссиями по делам несовершеннолетних и защите их прав | E170: Управление по обеспечению деятельности мировых судей, адвокатуры и нотариата Нижегородской области | G170: НЕ УКАЗАНО | H170: 0 | I170: 5 | J170: 5
C171: 1.16.01.15.3.01.0.006.140 | D171: Административные штрафы, установленные Главой 15 Кодекса Российской Федерации об административных правонарушениях, за административные правонарушения в области финансов, налогов и сборов, страхования, рынка ценных бумаг (за исключением штрафов, указанных в пункте 6 статьи 46 Бюджетного кодекса Российской Федерации), налагаемые мировыми судьями, комиссиями по делам несовершеннолетних и защите их прав | E171: Управление по обеспечению деятельности мировых судей, адвокатуры и нотариата Нижегородской области | G171: НЕ УКАЗАНО | H171: 0 | I171: 0.75
C172: 218.1.16.01.06.3.01.0.101.140 | D172: Административные штрафы, установленные Главой 6 Кодекса Российской Федерации об административных правонарушениях, за административные правонарушения, посягающие на здоровье, санитарно-эпидемиологическое благополучие населения и общественную нравственность, налагаемые мировыми судьями, комиссиями по делам несовершеннолетних и защите их прав ( штрафы за побои) | E172: Управление по обеспечению деятельности мировых судей, адвокатуры и нотариата Нижегородской области | G172: НЕ УКАЗАНО | H172: 0 | I172: 27.75 | J172: 27.75 | K172: 20 | L172: 20.8 | M172: 21.6
C173: 1.16.01.15.3.01.9.000.140 | D173: Административные штрафы, установленные Главой 15 Кодекса Российской Федерации об административных правонарушениях, за административные правонарушения в области финансов, налогов и сборов, страхования, рынка ценных бумаг (за исключением штрафов, указанных в пункте 6 статьи 46 Бюджетного кодекса Российской Федерации), налагаемые мировыми судьями, комиссиями по делам несовершеннолетних и защите их прав | E173: Управление по обеспечению деятельности мировых судей, адвокатуры и нотариата Нижегородской области | G173: НЕ УКАЗАНО | H173: 0 | I173: 0.45
C174: 218.1.16.01.07.3.01.0.019.140 | D174: Административные штрафы, установленные главой 7 Кодекса Российской Федерации об административных правонарушениях, за административные правонарушения в области охраны собственности, налагаемые мировыми судьями, комиссиями по делам несовершеннолетних и защите их прав | E174: Управление по обеспечению деятельности мировых судей, адвокатуры и нотариата Нижегородской области | G174: НЕ УКАЗАНО | H174: 0 | I174: 7.5 | J174: 7.5
C175: 1.16.01.19.0.01.0.000.140 | D175: Административные штрафы, установленные Главой 19 Кодекса Российской Федерации об административных правонарушениях, за административные правонарушения против порядка управления | E175: Управление по обеспечению деятельности мировых судей, адвокатуры и нотариата Нижегородской области | G175: НЕ УКАЗАНО | H175: 0 | I175: 10.65
C176: 1.16.01.19.3.01.0.000.140 | D176: Административные штрафы, установленные Главой 19 Кодекса Российской Федерации об административных правонарушениях, за административные правонарушения против порядка управления, налагаемые мировыми судьями, комиссиями по делам несовершеннолетних и защите их прав | E176: Управление по обеспечению деятельности мировых судей, адвокатуры и нотариата Нижегородской области | G176: НЕ УКАЗАНО | H176: 0 | I176: 10.65
C177: 1.16.01.19.3.01.0.005.140 | D177: Административные штрафы, установленные Главой 19 Кодекса Российской Федерации об административных правонарушениях, за административные правонарушения против порядка управления, налагаемые мировыми судьями, комиссиями по делам несовершеннолетних и защите их прав | E177: Управление по обеспечению деятельности мировых судей, адвокатуры и нотариата Нижегородской области | G177: НЕ УКАЗАНО | H177: 0 | I177: 9
C178: 218.1.16.01.08.3.01.0.281.140 | D178: Административные штрафы, установленные Главой 8 Кодекса Российской Федерации об административных правонарушениях, за административные правонарушения в области охраны окружающей среды и природопользования, налагаемые мировыми судьями, комиссиями по делам несовершеннолетних и защите их прав | E178: Управление по обеспечению деятельности мировых судей, адвокатуры и нотариата Нижегородской области | G178: НЕ УКАЗАНО | H178: 60.8 | I178: 62.5 | J178: 62.5 | K178: 65 | L178: 67.6 | M178: 70.3
C179: 1.16.01.19.3.01.0.007.140 | D179: Административные штрафы, установленные Главой 19 Кодекса Российской Федерации об административных правонарушениях, за административные правонарушения против порядка управления, налагаемые мировыми судьями, комиссиями по делам несовершеннолетних и защите их прав | E179: Управление по обеспечению деятельности мировых судей, адвокатуры и нотариата Нижегородской области | G179: НЕ УКАЗАНО | H179: 0 | I179: 0.15
C180: 218.1.16.01.14.3.01.0.171.140 | D180: Административные штрафы, установленные главой 14 Кодекса Российской Федерации об административных правонарушениях, за административные правонарушения в области предпринимательской деятельности и деятельности саморегулируемых организаций, налагаемые мировыми судьями, комиссиями по делам несовершеннолетних и защите их прав | E180: Управление по обеспечению деятельности мировых судей, адвокатуры и нотариата Нижегородской области | G180: НЕ УКАЗАНО | H180: 0 | I180: 10 | J180: 10
C181: 1.16.01.19.3.01.0.021.140 | D181: Административные штрафы, установленные Главой 19 Кодекса Российской Федерации об административных правонарушениях, за административные правонарушения против порядка управления, налагаемые мировыми судьями, комиссиями по делам несовершеннолетних и защите их прав | E181: Управление по обеспечению деятельности мировых судей, адвокатуры и нотариата Нижегородской области | G181: НЕ УКАЗАНО | H181: 0 | I181: 1.5
C182: 218.1.16.01.15.3.01.0.005.140 | D182: Административные штрафы, установленные главой 15 Кодекса Российской Федерации об административных правонарушениях, за административные правонарушения в области финансов, налогов и сборов, страхования, рынка ценных бумаг (за исключением штрафов, указанных в пункте 6 статьи 46 Бюджетного кодекса Российской Федерации), налагаемые мировыми судьями, комиссиями по делам несовершеннолетних и защите их прав | E182: Управление по обеспечению деятельности мировых судей, адвокатуры и нотариата Нижегородской области | G182: НЕ УКАЗАНО | H182: 0 | I182: 0.15 | J182: 0.15
C183: 1.16.01.20.0.01.0.000.140 | D183: Административные штрафы, установленные Главой 20 Кодекса Российской Федерации об административных правонарушениях, за административные правонарушения, посягающие на общественный порядок и общественную безопасность | G183: НЕ УКАЗАНО | H183: 37.9 | I183: 8.05
C184: 1.16.01.20.3.01.0.000.140 | D184: Административные штрафы, установленные Главой 20 Кодекса Российской Федерации об административных правонарушениях, за административные правонарушения, посягающие на общественный порядок и общественную безопасность, налагаемые мировыми судьями, комиссиями по делам несовершеннолетних и защите их прав | G184: НЕ УКАЗАНО | H184: 37.9 | I184: 8.05
C185: 1.16.01.20.3.01.0.021.140 | D185: Административные штрафы, установленные Главой 20 Кодекса Российской Федерации об административных правонарушениях, за административные правонарушения, посягающие на общественный порядок и общественную безопасность, налагаемые мировыми судьями, комиссиями по делам несовершеннолетних и защите их прав ( штрафы за появление в общественных местах в состоянии опьянения) | G185: НЕ УКАЗАНО | H185: 0 | I185: 1.35
C186: 218.1.16.01.15.3.01.0.006.140 | D186: Административные штрафы, установленные Главой 15 Кодекса Российской Федерации об административных правонарушениях, за административные правонарушения в области финансов, налогов и сборов, страхования, рынка ценных бумаг (за исключением штрафов, указанных в пункте 6 статьи 46 Бюджетного кодекса Российской Федерации), налагаемые мировыми судьями, комиссиями по делам несовершеннолетних и защите их прав | E186: Управление по обеспечению деятельности мировых судей, адвокатуры и нотариата Нижегородской области | H186: 0 | I186: 0.6 | J186: 0.6
C187: 218.1.16.01.17.3.01.0.008.140 | D187: Административные штрафы, установленные главой 17 Кодекса Российской Федерации об административных правонарушениях, за административные правонарушения, посягающие на институты государственной власти, налагаемые мировыми судьями, комиссиями по делам несовершеннолетних и защите их прав | E187: Управление по обеспечению деятельности мировых судей, адвокатуры и нотариата Нижегородской области | H187: 0 | I187: 3.38 | J187: 3.38
C188: 218.1.16.01.19.3.01.0.005.140 | D188: Административные штрафы, установленные Главой 19 Кодекса Российской Федерации об административных правонарушениях, за административные правонарушения против порядка управления, налагаемые мировыми судьями, комиссиями по делам несовершеннолетних и защите их прав | E188: Управление по обеспечению деятельности мировых судей, адвокатуры и нотариата Нижегородской области | H188: 11 | I188: 83.52 | J188: 130
C189: 218.1.16.01.19.3.01.0.007.140 | D189: Административные штрафы, установленные Главой 19 Кодекса Российской Федерации об административных правонарушениях, за административные правонарушения против порядка управления, налагаемые мировыми судьями, комиссиями по делам несовершеннолетних и защите их прав | E189: Управление по обеспечению деятельности мировых судей, адвокатуры и нотариата Нижегородской области | H189: 0 | I189: 0.15 | J189: 0.15
C190: 218.1.16.01.19.3.01.0.013.140 | D190: Административные штрафы, установленные главой 19 Кодекса Российской Федерации об административных правонарушениях, за административные правонарушения против порядка управления, налагаемые мировыми судьями, комиссиями по делам несовершеннолетних и защите их прав | E190: Управление по обеспечению деятельности мировых судей, адвокатуры и нотариата Нижегородской области | H190: 0 | I190: 4.52 | J190: 4.52
C191: 218.1.16.01.19.3.01.9.000.140 | D191: Административные штрафы, установленные главой 19 Кодекса Российской Федерации об административных правонарушениях, за административные правонарушения против порядка управления, налагаемые мировыми судьями, комиссиями по делам несовершеннолетних и защите их прав | E191: Управление по обеспечению деятельности мировых судей, адвокатуры и нотариата Нижегородской области | H191: 0 | I191: 1 | J191: 1
C192: 218.1.16.01.20.3.01.0.007.140 | D192: Административные штрафы, установленные главой 20 Кодекса Российской Федерации об административных правонарушениях, за административные правонарушения, посягающие на общественный порядок и общественную безопасность, налагаемые мировыми судьями, комиссиями по делам несовершеннолетних и защите их прав | E192: Управление по обеспечению деятельности мировых судей, адвокатуры и нотариата Нижегородской области | H192: 0 | I192: 5 | J192: 5
C193: 218.1.16.01.20.3.01.0.021.140 | D193: Административные штрафы, установленные Главой 20 Кодекса Российской Федерации об административных правонарушениях, за административные правонарушения, посягающие на общественный порядок и общественную безопасность, налагаемые мировыми судьями, комиссиями по делам несовершеннолетних и защите их прав ( штрафы за появление в общественных местах в состоянии опьянения) | E193: Управление по обеспечению деятельности мировых судей, адвокатуры и нотариата Нижегородской области | H193: 0 | I193: 1.25 | J193: 1.25
C194: 218.1.16.01.20.3.01.9.000.140 | D194: Административные штрафы, установленные Главой 20 Кодекса Российской Федерации об административных правонарушениях, за административные правонарушения, посягающие на общественный порядок и общественную безопасность, налагаемые мировыми судьями, комиссиями по делам несовершеннолетних и защите их прав ( иные штрафы) | E194: Управление по обеспечению деятельности мировых судей, адвокатуры и нотариата Нижегородской области | H194: 8.2 | I194: 26.33 | J194: 26.33
C195: 150.1.16.01.20.3.01.0.021.140 | D195: Административные штрафы, установленные Главой 20 Кодекса Российской Федерации об административных правонарушениях, за административные правонарушения, посягающие на общественный порядок и общественную безопасность, налагаемые мировыми судьями, комиссиями по делам несовершеннолетних и защите их прав ( штрафы за появление в общественных местах в состоянии опьянения) | E195: Министерство социальной политики Нижегородской области | G195: НЕ УКАЗАНО | H195: 0 | I195: 0 | J195: 0
C196: 218.1.16.01.20.3.01.0.021.140 | D196: Административные штрафы, установленные Главой 20 Кодекса Российской Федерации об административных правонарушениях, за административные правонарушения, посягающие на общественный порядок и общественную безопасность, налагаемые мировыми судьями, комиссиями по делам несовершеннолетних и защите их прав ( штрафы за появление в общественных местах в состоянии опьянения) | E196: Управление по обеспечению деятельности мировых судей, адвокатуры и нотариата Нижегородской области | G196: НЕ УКАЗАНО | H196: 0 | I196: 0 | J196: 0
C197: 1.16.01.20.3.01.9.000.140 | D197: Административные штрафы, установленные Главой 20 Кодекса Российской Федерации об административных правонарушениях, за административные правонарушения, посягающие на общественный порядок и общественную безопасность, налагаемые мировыми судьями, комиссиями по делам несовершеннолетних и защите их прав ( иные штрафы) | G197: НЕ УКАЗАНО | H197: 37.9 | I197: 6.7
C198: 150.1.16.01.20.3.01.9.000.140 | D198: Административные штрафы, установленные Главой 20 Кодекса Российской Федерации об административных правонарушениях, за административные правонарушения, посягающие на общественный порядок и общественную безопасность, налагаемые мировыми судьями, комиссиями по делам несовершеннолетних и защите их прав ( иные штрафы) | E198: Министерство социальной политики Нижегородской области | G198: НЕ УКАЗАНО | H198: 0 | I198: 0 | J198: 0 | K198: 0 | L198: 0 | M198: 0
C199: 218.1.16.01.20.3.01.9.000.140 | D199: Административные штрафы, установленные Главой 20 Кодекса Российской Федерации об административных правонарушениях, за административные правонарушения, посягающие на общественный порядок и общественную безопасность, налагаемые мировыми судьями, комиссиями по делам несовершеннолетних и защите их прав ( иные штрафы) | E199: Управление по обеспечению деятельности мировых судей, адвокатуры и нотариата Нижегородской области | G199: НЕ УКАЗАНО | H199: 0 | I199: 0 | J199: 0 | K199: 0 | L199: 0 | M199: 0
C200: 1.16.07.00.0.01.0.000.140 | D200: Штрафы, неустойки, пени, уплаченные в соответствии с законом или договором в случае неисполнения или ненадлежащего исполнения обязательств перед государственным (муниципальным) органом, органом управления государственным внебюджетным фондом, казенным учреждением, Центральным банком Российской Федерации, иной организацией, действующей от имени Российской Федерации | E200: Отдел архитектуры и строительства администрации Тонкинского муниципального района Нижегородской области | G200: НЕ УКАЗАНО | H200: 35 | I200: 0
C201: 1.16.07.01.0.00.0.000.140 | D201: Штрафы, неустойки, пени, уплаченные в случае просрочки исполнения поставщиком (подрядчиком, исполнителем) обязательств, предусмотренных государственным (муниципальным) контрактом | E201: Отдел архитектуры и строительства администрации Тонкинского муниципального района Нижегородской области | G201: НЕ УКАЗАНО | H201: 35 | I201: 0
C202: 1.16.07.01.0.05.0.000.140 | D202: Штрафы, неустойки, пени, уплаченные в случае просрочки исполнения поставщиком (подрядчиком, исполнителем) обязательств, предусмотренных муниципальным контрактом, заключенным муниципальным органом, казенным учреждением муниципального района | E202: Отдел архитектуры и строительства администрации Тонкинского муниципального района Нижегородской области | G202: НЕ УКАЗАНО | H202: 35 | I202: 0
C203: 131.1.16.07.01.0.05.0.000.140 | D203: Штрафы, неустойки, пени, уплаченные в случае просрочки исполнения поставщиком (подрядчиком, исполнителем) обязательств, предусмотренных муниципальным контрактом, заключенным муниципальным органом, казенным учреждением муниципального района | E203: Отдел архитектуры и строительства администрации Тонкинского муниципального района Нижегородской области | G203: НЕ УКАЗАНО | H203: 0 | I203: 0
... 223 more rows
